{"text_format":"1","workbook":"xlsx","n_sheets":4,"sheets":["ADMIN","QUESTIONS","SUMMARIUM","DATAQ"],"not_rendered":{"charts":1,"images":3,"macros":1,"external_links":0,"defined_names":2,"comments":0,"pivot_tables":0},"unopened":[],"bounds":{"document_bytes":16777216,"sheet_cells":100000,"rows_first":2000,"rows_last":500,"rows_between":2000,"halvings":0,"cell_chars":16384,"cell_head_chars":4096},"cells_cut":0,"cells_raw":0,"read":"whole","date_system":"1900"}

{"sheet":"ADMIN","index":0,"n_rows":90,"n_cols":33,"rows_kept":90,"cut":false,"hidden":false,"merged":[[13,13,13,20],[14,13,14,20],[16,13,16,14],[16,17,16,20],[17,13,17,14],[17,15,17,20],[30,13,30,20],[18,13,18,14],[18,17,18,19],[19,13,19,14],[19,15,19,20],[20,13,20,14],[20,15,20,20],[23,13,23,20],[25,13,25,20],[27,13,27,14],[27,15,27,20],[28,13,28,20],[32,13,32,14],[32,16,32,20],[33,13,33,14],[33,16,33,20],[34,13,34,14],[34,16,34,20],[35,13,35,14],[35,16,35,20],[36,13,36,14],[36,16,36,20],[37,13,37,14],[37,16,37,20],[46,13,46,14],[46,16,46,20],[38,13,38,14],[38,16,38,20],[39,13,39,14],[39,16,39,20],[40,13,40,14],[40,16,40,20],[42,13,42,20],[44,13,44,14],[44,16,44,20],[45,13,45,14],[45,16,45,20],[55,13,55,20],[47,13,47,14],[47,16,47,20],[48,13,48,14],[48,16,48,20],[49,13,49,14],[49,16,49,20],[50,13,50,14],[50,16,50,20],[51,13,51,20],[52,13,52,20],[54,13,54,20]]}
["QID","MEQ","Instructions pour les impressions",null,null,"pdf","xlms","Data ","ReferenceVBA","Copie",null,null,null,null,null,null,null,null,null,null,null,null,null,null,null,null,"Special","Ascii","NoAudit","MRC","Lieu","Prénom","Nom"]
["QIDCDPQO",1,"SUMMARIUM","$M$13:$V$61","R","OUI","OUI",{"$f":"P28","v":"20201216-NIL0-AucunLieuXXXXXXXXXXX"},1,0,null,null,null,null,null,null,null,null,null,null,null,null,null,null,null,null,"Apostrophe",null,{"$f":"LEFT(SUBSTITUTE(J21,\"'\",$AB2),8)","v":"0"},{"$f":"LEFT(SUBSTITUTE(J23,\"'\",$AB2),16)","v":"AucuneMRC"},{"$f":"LEFT(SUBSTITUTE(J26,\"'\",$AB2),25)","v":"AucunLieu"},{"$f":"I17","v":"Prénom"},{"$f":"J17","v":"Nom"}]
["QIDCDPQF",1,null,null,null,null,null,{"$f":"P29","v":0},0,0,null,null,null,null,null,null,null,null,null,null,null,null,null,null,null,null,"á","a",{"$f":"SUBSTITUTE(AC2,$AA3,$AB3)","v":"0"},"AucuneMRC","AucunLieu","Prénom","Nom"]
["IdAudit",1,null,null,null,null,null,{"$f":"LEFT(UPPER(CONCATENATE(LEFT(AF89,4),LEFT(AG89,4),\"XXXX\")),8)","v":"PRENNOMX"},13,13,null,null,null,null,null,null,null,null,null,null,null,null,null,null,null,null,"Á","A","0","AucuneMRC","AucunLieu","Prénom","Nom"]
["PrenomAudit",1,null,null,null,null,null,{"$f":"I17","v":"Prénom"},14,{"$f":"ROW(J14)","v":14},null,null,null,null,null,null,null,null,null,null,null,null,null,null,null,null,"â","a","0","AucuneMRC","AucunLieu","Prénom","Nom"]
["NomAudit",1,null,null,null,null,null,{"$f":"J17","v":"Nom"},56,56,null,null,null,null,null,null,null,null,null,null,null,null,null,null,null,null,"Â","A","0","AucuneMRC","AucunLieu","Prénom","Nom"]
["CourrielAudit",1,null,null,null,null,null,{"$f":"IF(P18=\"\",\"Audit@pascourriel\",P18)","v":"Audit@pascourriel"},{"$f":"ROW(I92)","v":92},{"$f":"ROW(J92)","v":92},null,null,null,null,null,null,null,null,null,null,null,null,null,null,null,null,"à","a","0","AucuneMRC","AucunLieu","Prénom","Nom"]
["CourrielClient",1,null,null,null,null,null,{"$f":"IF(J19=TRUE,P20,\"Aucun\")","v":0},52,52,null,null,null,null,null,null,null,null,null,null,null,null,null,null,null,null,"À","A","0","AucuneMRC","AucunLieu","Prénom","Nom"]
["EnvoiAudit",1,null,null,null,null,null,1,"$W:$AK","$W:$AK",null,null,null,null,null,null,null,null,null,null,null,null,null,null,null,null,"å","a","0","AucuneMRC","AucunLieu","Prénom","Nom"]
["EnvoiClient",1,null,null,null,null,null,{"$f":"J19*1","v":1},{"$f":"CONCATENATE(\"$M$\",I5,\":$V$\",I6)","v":"$M$14:$V$56"},{"$f":"CONCATENATE(\"$M$\",J5,\":$V$\",J6)","v":"$M$14:$V$56"},null,null,null,null,null,null,null,null,null,null,null,null,null,null,null,null,"Å","A","0","AucuneMRC","AucunLieu","Prénom","Nom"]
["NmQuestAudit",1,null,null,null,null,null,"SO",{"$f":"I43","v":0.22222222222222221},{"$f":"J43","v":0},null,null,null,null,null,null,null,null,null,null,null,null,null,null,null,null,"ã","a","0","AucuneMRC","AucunLieu","Prénom","Nom"]
["CodeValida",1,null,null,null,null,null,{"$f":"IF(P22=\"\",\"\",P22)","v":""},{"$f":"IF(Q51=1,1,IF(Q51=2,2,IF(Q51>14,Q51,0)))","v":0},{"$f":"IF(R51=1,1,IF(R51=2,2,IF(R51>14,R51,0)))","v":0},null,null,null,null,null,null,null,null,null,null,null,null,null,null,null,null,"Ã","A","0","AucuneMRC","AucunLieu","Prénom","Nom"]
["MRC",1,null,null,null,null,null,{"$f":"J23","v":"AucuneMRC"},"M14:V16,M17:O23,M24:V50,M51:P51,M52:V53","M14:V16,M17:O23,M24:V50,M51:P51,M52:V90",null,null,null,null,null,null,null,null,null,null,null,null,null,null,null,null,"ä","a","0","AucuneMRC","AucunLieu","Prénom","Nom"]
["Titre",3,null,null,null,null,null,null,{"$f":"ROW(H45)","v":45},{"$f":"ROW(I45)","v":45},null,null,null,"Biosécurité à la ferme (veaux)",null,null,null,null,null,null,null,null,null,null,null,null,"Ä","A",{"$f":"SUBSTITUTE(AC13,$AA14,$AB14)","v":"0"},{"$f":"SUBSTITUTE(AD13,$AA14,$AB14)","v":"AucuneMRC"},{"$f":"SUBSTITUTE(AE13,$AA14,$AB14)","v":"AucunLieu"},{"$f":"SUBSTITUTE(AF13,$AA14,$AB14)","v":"Prénom"},{"$f":"SUBSTITUTE(AG13,$AA14,$AB14)","v":"Nom"}]
["EnvoiConsut",21,null,null,null,null,null,{"$f":"K19*1","v":1},1,1,null,null,null,{"$f":"CONCATENATE(\"A) Section à compléter par l'auditeur (code \",H4,\")\",)","v":"A) Section à compléter par l'auditeur (code PRENNOMX)"},null,null,null,null,null,null,null,null,null,null,null,null,"æ","ae","0","AucuneMRC","AucunLieu","Prénom","Nom"]
["CourrielConsult",14,null,null,null,null,null,{"$f":"IF(K19=TRUE,P21,\"Aucun\")","v":0},null,null,null,null,null,null,null,null,null,null,null,null,null,null,null,null,null,null,"Æ","AE","0","AucuneMRC","AucunLieu","Prénom","Nom"]
["GEST17",50,null,null,null,null,null,null,{"$f":"IF(P17=\"\",\"Prénom\",P17)","v":"Prénom"},{"$f":"IF(R17=\"\",\"Nom\",R17)","v":"Nom"},null,null,null,"&1- Nom de l'auditeur",null,null,null,null,null,null,null,null,null,null,null,null,"ç","c","0","AucuneMRC","AucunLieu","Prénom","Nom"]
["GEST18",48,null,null,null,null,null,null,null,null,null,null,null,"&2- Adresse courriel de l'auditeur",null,null,null,null,null,null,null,null,null,null,null,null,"Ç","C","0","AucuneMRC","AucunLieu","Prénom","Nom"]
["GEST19",49,null,null,null,null,null,null,null,true,true,null,null,"&3- Le CDPQ enverra le rapport d'étalonnage à :",null,"Responsable",null,"Consultant",null,null,null,null,null,null,null,null,"é","e",{"$f":"SUBSTITUTE(AC18,$AA19,$AB19)","v":"0"},"AucuneMRC","AucunLieu","Prenom","Nom"]
["GEST20",48,null,null,null,null,null,null,null,{"$f":"IF(P21=\"\",\"Aucun\",P21)","v":"Aucun"},{"$f":"IF(P20=\"\",\"Aucun\",P20)","v":"Aucun"},null,null,"&4- Adresse courriel du responsable (client)",null,null,null,null,null,null,null,null,null,null,null,null,"É","E","0","AucuneMRC","AucunLieu","Prenom","Nom"]
["GEST21",48,null,null,null,null,null,null,{"$f":"AC89","v":"0"},{"$f":"P21","v":0},null,null,null,"&5- Adresse courriel du consultant*",null,null,null,null,null,null,null,null,null,null,null,null,"ê","e","0","AucuneMRC","AucunLieu","Prenom","Nom"]
["GEST22",14,1,null,null,null,null,null,null,null,null,null,null,"ligne cachée",null,null,null,null,null,null,null,null,null,null,null,null,"Ê","E","0","AucuneMRC","AucunLieu","Prenom","Nom"]
["GEST23",14,1,null,null,null,null,null,{"$f":"AD89","v":"AucuneMRC"},{"$f":"IF(R23=\"\",\"AucuneMRC\",R23)","v":"AucuneMRC"},null,null,null,"ligne cachée",null,"Region Administrative",null,null,null,null,null,"",null,null,null,null,"è","e","0","AucuneMRC","AucunLieu","Prenom","Nom"]
["GEST24",40,null,null,null,null,null,null,null,null,null,null,null,"* Par consultant on indique une autre personne qui devrait recevoir une copie du rapport.  Le consultant est une personne qui a de l'expertise pour faire des recommandations pour améliorer les installations ou les procédures (ex: vétérinaire). ",null,null,null,null,null,null,null,null,null,null,null,null,"È","E","0","AucuneMRC","AucunLieu","Prenom","Nom"]
["GEST25",14,null,null,null,null,null,null,null,null,null,null,null,null,null,null,null,null,null,null,null,null,null,null,null,null,"ë","e","0","AucuneMRC","AucunLieu","Prenom","Nom"]
["GEST26",21,null,null,null,null,null,null,{"$f":"LEFT(CONCATENATE(AE89,\"XXXXXXXXXXXXXXXXXXXXXX\"),20)","v":"AucunLieuXXXXXXXXXXX"},{"$f":"IF(QUESTIONS!O23=\"\",\"AucunLieu\",QUESTIONS!O23)","v":"AucunLieu"},null,null,null,"B) Identification du document pour les répertoires «Sauvegarde» et Impression",null,null,null,null,null,null,null,null,null,null,null,null,"Ë","E","0","AucuneMRC","AucunLieu","Prenom","Nom"]
["GEST27",14,null,null,null,null,null,null,null,null,null,null,null,null,null,null,null,null,null,null,null,null,null,null,null,null,"í","i","0","AucuneMRC","AucunLieu","Prenom","Nom"]
["GEST28",19,null,null,null,null,null,{"$f":"P28","v":"20201216-NIL0-AucunLieuXXXXXXXXXXX"},null,{"$f":"LEN(H28)","v":34},null,null,null,"Identifiants CDPQ",null,{"$f":"CONCATENATE(YEAR(QUESTIONS!H25),TEXT(MONTH(QUESTIONS!H25), \"00\"),TEXT(DAY(QUESTIONS!H25), \"00\"),\"-NIL\",QUESTIONS!H29,\"-\",I26)","v":"20201216-NIL0-AucunLieuXXXXXXXXXXX"},null,null,null,null,null,null,null,null,null,null,"Í","I","0","AucuneMRC","AucunLieu","Prenom","Nom"]
["GEST29",40,null,null,null,null,null,{"$f":"P29","v":0},null,{"$f":"LEN(H29)","v":1},null,null,null,"Lorsque vous utilisez les bontons de cette page pour faire les impressions et les sauvegardes, les macro du fichier Excel vont faire des enregistrements dans les répertoires \"Sauvegarde\" et \"Impression\". ",null,null,null,null,null,null,null,null,null,null,null,null,"î","i","0","AucuneMRC","AucunLieu","Prenom","Nom"]
["GEST30",14,null,null,null,null,null,0,null,null,null,null,null,null,null,null,null,null,null,null,null,null,null,null,null,null,"Î","I","0","AucuneMRC","AucunLieu","Prenom","Nom"]
["GEST31",21,null,null,null,null,null,null,null,null,null,null,null,"C) Liste des éléments qui doivent être saisis avant l'envoi ",null,null,null,null,null,null,null,null,null,null,null,null,"ì","i","0","AucuneMRC","AucunLieu","Prenom","Nom"]
["GEST32",14,null,null,null,null,null,0,null,null,null,null,null,null,null,null,null,null,null,null,null,null,null,null,null,null,"Ì","I","0","AucuneMRC","AucunLieu","Prenom","Nom"]
["GEST33",55,null,null,null,null,null,null,{"$f":"IF(P33=\"Complet\",1,0)","v":0},null,null,null,null,"Le questionnaire",null,{"$f":"IF(QUESTIONS!K32<>1,\"Incomplet\",\"Complet\")","v":"Incomplet"},{"$f":"QUESTIONS!R23","v":"Q =  0/43  (0%)"},null,null,null,null,null,null,null,null,null,"ï","i","0","AucuneMRC","AucunLieu","Prenom","Nom"]
["GEST34",55,null,null,null,null,null,null,0,null,null,null,null,"Type de lieu  (DEB, FIN)",null,{"$f":"IF(QUESTIONS!R29=\"\",\"Incomplet\",\"Complet\")","v":"Incomplet"},{"$f":"IF(QUESTIONS!R29=\"\",\"Aucun\",QUESTIONS!R29)","v":"Aucun"},null,null,null,null,null,null,null,null,null,"Ï","I","0","AucuneMRC","AucunLieu","Prenom","Nom"]
["GEST35",55,1,null,null,null,null,null,1,null,null,null,null,"Question pour double questionnaire",null,{"$f":"IF(OR(QUESTIONS!H22>=0,QUESTIONS!I22=1,),\"Complet\",\"Incomplet\")","v":"Complet"},{"$f":"IF(QUESTIONS!H22=0,QUESTIONS!I17,IF(QUESTIONS!H22=1,QUESTIONS!J17,QUESTIONS!K17))","v":"Nouveau"},null,null,null,null,null,null,null,null,null,"ñ","n",{"$f":"SUBSTITUTE(AC34,$AA35,$AB35)","v":"0"},"AucuneMRC","AucunLieu","Prenom","Nom"]
["GEST36",55,null,null,null,null,null,null,{"$f":"IF(P36=\"Complet\",1,0)","v":0},{"$f":"IF(CONCATENATE(QUESTIONS!O27,QUESTIONS!O29)=\"\",0,CONCATENATE(QUESTIONS!O27,QUESTIONS!O29))","v":0},null,null,null,"NIL ou adresse ",null,{"$f":"IF(J36=0,\"Incomplet\",\"Complet\")","v":"Incomplet"},{"$f":"IF(J36=0,\"NIL ou Adresse\",J36)","v":"NIL ou Adresse"},null,null,null,null,null,null,null,null,null,"Ñ","N",{"$f":"SUBSTITUTE(AC35,$AA36,$AB36)","v":"0"},{"$f":"SUBSTITUTE(AD35,$AA36,$AB36)","v":"AucuneMRC"},{"$f":"SUBSTITUTE(AE35,$AA36,$AB36)","v":"AucunLieu"},{"$f":"SUBSTITUTE(AF35,$AA36,$AB36)","v":"Prenom"},{"$f":"SUBSTITUTE(AG35,$AA36,$AB36)","v":"Nom"}]
["GEST37",55,null,null,null,null,null,null,{"$f":"IF(P37=\"Complet\",1,0)","v":1},null,null,null,null,"La date de l'audit (QUESTIONS)",null,{"$f":"IF(QUESTIONS!O25=\"\",\"Incomplet\",IF(ISTEXT(QUESTIONS!O25),\"Incomplet\",\"Complet\"))","v":"Complet"},{"$f":"QUESTIONS!O25","v":"2020-12-16"},null,null,null,null,null,null,null,null,null,"ó","o","0","AucuneMRC","AucunLieu","Prenom","Nom"]
["GEST38",55,null,null,null,null,null,null,0,null,null,null,null,"Le nom de l'auditeur",null,{"$f":"IF(H4=\"PRENNOMX\",\"Incomplet\",\"Complet\")","v":"Incomplet"},{"$f":"H4","v":"PRENNOMX"},null,null,null,null,null,null,null,null,null,"Ó","O","0","AucuneMRC","AucunLieu","Prenom","Nom"]
["GEST39",55,null,null,null,null,null,null,0,null,null,null,null,"Le courriel de l'auditeur",null,{"$f":"IF(P18=\"\",\"Incomplet\",\"Complet\")","v":"Incomplet"},{"$f":"IF(P18=\"\",\"Étape &2\",P18)","v":"Étape &2"},null,null,null,null,null,null,null,null,null,"ô","o","0","AucuneMRC","AucunLieu","Prenom","Nom"]
["GEST40",55,null,null,null,null,null,null,{"$f":"IF(P40=\"Complet\",1,0)","v":0},null,null,null,null,"Le courriel du client",null,{"$f":"IF(AND(K19*1=1,P20=\"\"),\"Incomplet\",\"Complet\")","v":"Incomplet"},{"$f":"IF(K19=FALSE,\"Pas nécessaire\",K20)","v":"Aucun"},null,null,null,null,null,null,null,null,null,"Ô","O","0","AucuneMRC","AucunLieu","Prenom","Nom"]
["GEST41",57,null,null,null,null,null,null,0,null,null,null,null,"Le courriel du consultant",null,{"$f":"IF(AND(J19*1=1,P21=\"\"),\"Incomplet\",\"Complet\")","v":"Incomplet"},{"$f":"IF(J19=FALSE,\"Pas nécessaire\",J20)","v":"Aucun"},null,null,null,null,null,null,null,null,null,"ò","o","0","AucuneMRC","AucunLieu","Prenom","Nom"]
["GEST42",14,null,null,null,null,null,null,null,null,null,null,null,null,null,null,null,null,null,null,null,null,null,null,null,null,"Ò","O","0","AucuneMRC","AucunLieu","Prenom","Nom"]
["GEST43",21,null,null,null,null,null,null,{"$f":"SUM(I33:I41)/(COUNTA(I33:I41))","v":0.22222222222222221},null,null,null,null,"D) Section des MACRO pour imprimer, sauvegarder et envoyer ",null,null,null,null,null,null,null,null,null,null,null,null,"ø","o","0","AucuneMRC","AucunLieu","Prenom","Nom"]
["GEST44",14,null,null,null,null,null,null,null,null,null,null,null,null,null,null,null,null,null,null,null,null,null,null,null,null,"Ø","O","0","AucuneMRC","AucunLieu","Prenom","Nom"]
["GEST45",55,null,null,null,null,null,null,null,null,null,null,null,"Créer le rapport",null,null,null,null,null,null,null,null,null,null,null,null,"õ","o","0","AucuneMRC","AucunLieu","Prenom","Nom"]
["GEST46",55,null,null,null,null,null,null,null,null,null,null,null,"Imprimer le questionnaire (pdf)",null,null,null,null,null,null,null,null,null,null,null,null,"Õ","O","0","AucuneMRC","AucunLieu","Prenom","Nom"]
["GEST47",55,null,null,null,null,null,null,null,null,null,null,null,"Imprimer le rapport (pdf)",null,null,null,null,null,null,null,null,null,null,null,null,"ö","o","0","AucuneMRC","AucunLieu","Prenom","Nom"]
["GEST48",55,null,null,null,null,null,null,null,null,null,null,null,"Imprimer le questionnaire et les directives (pdf)",null,null,null,null,null,null,null,null,null,null,null,null,"Ö","O","0","AucuneMRC","AucunLieu","Prenom","Nom"]
["GEST49",55,null,null,null,null,null,null,null,null,null,null,null,"Imprimer les directives (pdf)",null,null,null,null,null,null,null,null,null,null,null,null,"œ","oe","0","AucuneMRC","AucunLieu","Prenom","Nom"]
["GEST50",55,null,null,null,null,null,null,null,null,null,null,null,"Envoyer le fichier au CDPQ",null,null,null,null,null,null,null,null,null,null,null,null,"Œ","OE","0","AucuneMRC","AucunLieu","Prenom","Nom"]
["GEST51",55,null,null,null,null,null,null,null,null,null,null,null,"Créer un nouveau questionnaire",null,null,null,null,null,null,null,null,null,null,null,null,"š","s",{"$f":"SUBSTITUTE(AC50,$AA51,$AB51)","v":"0"},"AucuneMRC","AucunLieu","Prenom","Nom"]
["GEST52",3,null,null,null,null,null,null,null,null,null,null,null,null,null,null,null,null,null,null,null,null,null,null,null,null,"Š","S","0","AucuneMRC","AucunLieu","Prenom","Nom"]
["GEST53",21,"Attention, les colonnes  «AA  -AD\" contiennent le correcteur ASCII (89 lignes)",null,null,null,null,null,null,null,null,null,null,"E) Sections ajoutées à la fin du rapport (onglet SUMMARIUM)",null,null,null,null,null,null,null,null,null,null,null,null,"ß","b","0","AucuneMRC","AucunLieu","Prenom","Nom"]
["GEST54",14,"Attention, les colonnes  «AA  -AD\" contiennent le correcteur ASCII (89 lignes)",null,null,null,null,null,null,null,null,null,null,null,null,null,null,null,null,null,null,null,null,null,null,null,"ð","d","0","AucuneMRC","AucunLieu","Prenom","Nom"]
["GEST55",59,"Attention, les colonnes  «AA  -AD\" contiennent le correcteur ASCII (89 lignes)",null,null,null,null,null,null,null,null,null,null,"Financement. Cet audit en biosécurité dans le secteur du veau de lait a été réalisé dans le cadre du projet « Plan d’intervention à la ferme en biosécurité et services-conseils vétérinaires », financé par la  Financière agricole du Québec et de Les producteurs de Bovins du Québec (PBQ). Ce projet est réalisé par l'équipe santé et biosécurité du Centre de développement du porc du Québec (CDPQ).",null,null,null,null,null,null,null,null,null,null,null,null,"Ð","D","0","AucuneMRC","AucunLieu","Prenom","Nom"]
["GEST56",59,"Attention, les colonnes  «AA  -AD\" contiennent le correcteur ASCII (89 lignes)",null,null,null,null,null,null,null,null,null,null,"Commentaires de l'auditeur",null,null,null,null,null,null,null,null,null,null,null,null,"þ","p","0","AucuneMRC","AucunLieu","Prenom","Nom"]
["GEST57",1,"Attention, les colonnes  «AA  -AD\" contiennent le correcteur ASCII (89 lignes)",null,null,null,null,null,null,null,null,null,null,null,null,null,null,null,null,null,null,null,null,null,null,null,"Þ","p","0","AucuneMRC","AucunLieu","Prenom","Nom"]
["GEST58",1,"Attention, les colonnes  «AA  -AD\" contiennent le correcteur ASCII (89 lignes)",null,null,null,null,null,null,null,null,null,null,null,null,null,null,null,null,null,null,null,null,null,null,null,"ú","u","0","AucuneMRC","AucunLieu","Prenom","Nom"]
["GEST59",1,"Attention, les colonnes  «AA  -AD\" contiennent le correcteur ASCII (89 lignes)",null,null,null,null,null,null,null,null,null,null,null,null,null,null,null,null,null,null,null,null,null,null,null,"Ú","U","0","AucuneMRC","AucunLieu","Prenom","Nom"]
["GEST60",1,"Attention, les colonnes  «AA  -AD\" contiennent le correcteur ASCII (89 lignes)",null,null,null,null,null,null,null,null,null,null,null,null,null,null,null,null,null,null,null,null,null,null,null,"û","u","0","AucuneMRC","AucunLieu","Prenom","Nom"]
["GEST61",1,"Attention, les colonnes  «AA  -AD\" contiennent le correcteur ASCII (89 lignes)",null,null,null,null,null,null,null,null,null,null,null,null,null,null,null,null,null,null,null,null,null,null,null,"Û","U","0","AucuneMRC","AucunLieu","Prenom","Nom"]
["GEST62",1,"Attention, les colonnes  «AA  -AD\" contiennent le correcteur ASCII (89 lignes)",null,null,null,null,null,null,null,null,null,null,null,null,null,null,null,null,null,null,null,null,null,null,null,"ù","u","0","AucuneMRC","AucunLieu","Prenom","Nom"]
["GEST63",1,"Attention, les colonnes  «AA  -AD\" contiennent le correcteur ASCII (89 lignes)",null,null,null,null,null,null,null,null,null,null,null,null,null,null,null,null,null,null,null,null,null,null,null,"Ù","U","0","AucuneMRC","AucunLieu","Prenom","Nom"]
["GEST64",1,"Attention, les colonnes  «AA  -AD\" contiennent le correcteur ASCII (89 lignes)",null,null,null,null,null,null,null,null,null,null,null,null,null,null,null,null,null,null,null,null,null,null,null,"ü","u","0","AucuneMRC","AucunLieu","Prenom","Nom"]
["GEST65",1,"Attention, les colonnes  «AA  -AD\" contiennent le correcteur ASCII (89 lignes)",null,null,null,null,null,null,null,null,null,null,null,null,null,null,null,null,null,null,null,null,null,null,null,"Ü","U","0","AucuneMRC","AucunLieu","Prenom","Nom"]
["GEST66",1,"Attention, les colonnes  «AA  -AD\" contiennent le correcteur ASCII (89 lignes)",null,null,null,null,null,null,null,null,null,null,null,null,null,null,null,null,null,null,null,null,null,null,null,"ý","y","0","AucuneMRC","AucunLieu","Prenom","Nom"]
["GEST67",1,"Attention, les colonnes  «AA  -AD\" contiennent le correcteur ASCII (89 lignes)",null,null,null,null,null,null,null,null,null,null,null,null,null,null,null,null,null,null,null,null,null,null,null,"Ý","Y",{"$f":"SUBSTITUTE(AC66,$AA67,$AB67)","v":"0"},"AucuneMRC","AucunLieu","Prenom","Nom"]
["GEST68",1,"Attention, les colonnes  «AA  -AD\" contiennent le correcteur ASCII (89 lignes)",null,null,null,null,null,null,null,null,null,null,null,null,null,null,null,null,null,null,null,null,null,null,null,"ÿ","y","0","AucuneMRC","AucunLieu","Prenom","Nom"]
["GEST69",1,"Attention, les colonnes  «AA  -AD\" contiennent le correcteur ASCII (89 lignes)",null,null,null,null,null,null,null,null,null,null,null,null,null,null,null,null,null,null,null,null,null,null,null,"ÿ","Y","0","AucuneMRC","AucunLieu","Prenom","Nom"]
["GEST70",1,"Attention, les colonnes  «AA  -AD\" contiennent le correcteur ASCII (89 lignes)",null,null,null,null,null,null,null,null,null,null,null,null,null,null,null,null,null,null,null,null,null,null,null," ",null,"0","AucuneMRC","AucunLieu","Prenom","Nom"]
["GEST71",1,"Attention, les colonnes  «AA  -AD\" contiennent le correcteur ASCII (89 lignes)",null,null,null,null,null,null,null,null,null,null,null,null,null,null,null,null,null,null,null,null,null,null,null,":",null,"0","AucuneMRC","AucunLieu","Prenom","Nom"]
["GEST72",1,"Attention, les colonnes  «AA  -AD\" contiennent le correcteur ASCII (89 lignes)",null,null,null,null,null,null,null,null,null,null,null,null,null,null,null,null,null,null,null,null,null,null,null,";",null,"0","AucuneMRC","AucunLieu","Prenom","Nom"]
["GEST73",1,"Attention, les colonnes  «AA  -AD\" contiennent le correcteur ASCII (89 lignes)",null,null,null,null,null,null,null,null,null,null,null,null,null,null,null,null,null,null,null,null,null,null,null,".",null,"0","AucuneMRC","AucunLieu","Prenom","Nom"]
["GEST74",1,"Attention, les colonnes  «AA  -AD\" contiennent le correcteur ASCII (89 lignes)",null,null,null,null,null,null,null,null,null,null,null,null,null,null,null,null,null,null,null,null,null,null,null,",",null,"0","AucuneMRC","AucunLieu","Prenom","Nom"]
["GEST75",1,"Attention, les colonnes  «AA  -AD\" contiennent le correcteur ASCII (89 lignes)",null,null,null,null,null,null,null,null,null,null,null,null,null,null,null,null,null,null,null,null,null,null,null,"|",null,"0","AucuneMRC","AucunLieu","Prenom","Nom"]
["GEST76",1,"Attention, les colonnes  «AA  -AD\" contiennent le correcteur ASCII (89 lignes)",null,null,null,null,null,null,null,null,null,null,null,null,null,null,null,null,null,null,null,null,null,null,null,"!",null,"0","AucuneMRC","AucunLieu","Prenom","Nom"]
["GEST77",1,"Attention, les colonnes  «AA  -AD\" contiennent le correcteur ASCII (89 lignes)",null,null,null,null,null,null,null,null,null,null,null,null,null,null,null,null,null,null,null,null,null,null,null,"\"",null,"0","AucuneMRC","AucunLieu","Prenom","Nom"]
["GEST78",1,"Attention, les colonnes  «AA  -AD\" contiennent le correcteur ASCII (89 lignes)",null,null,null,null,null,null,null,null,null,null,null,null,null,null,null,null,null,null,null,null,null,null,null,"/",null,"0","AucuneMRC","AucunLieu","Prenom","Nom"]
["GEST79",1,"Attention, les colonnes  «AA  -AD\" contiennent le correcteur ASCII (89 lignes)",null,null,null,null,null,null,null,null,null,null,null,null,null,null,null,null,null,null,null,null,null,null,null,"$",null,"0","AucuneMRC","AucunLieu","Prenom","Nom"]
["GEST80",1,"Attention, les colonnes  «AA  -AD\" contiennent le correcteur ASCII (89 lignes)",null,null,null,null,null,null,null,null,null,null,null,null,null,null,null,null,null,null,null,null,null,null,null,"%",null,"0","AucuneMRC","AucunLieu","Prenom","Nom"]
["GEST81",1,"Attention, les colonnes  «AA  -AD\" contiennent le correcteur ASCII (89 lignes)",null,null,null,null,null,null,null,null,null,null,null,null,null,null,null,null,null,null,null,null,null,null,null,"?",null,"0","AucuneMRC","AucunLieu","Prenom","Nom"]
["GEST82",1,"Attention, les colonnes  «AA  -AD\" contiennent le correcteur ASCII (89 lignes)",null,null,null,null,null,null,null,null,null,null,null,null,null,null,null,null,null,null,null,null,null,null,null,"&",null,"0","AucuneMRC","AucunLieu","Prenom","Nom"]
["GEST83",1,"Attention, les colonnes  «AA  -AD\" contiennent le correcteur ASCII (89 lignes)",null,null,null,null,null,null,null,null,null,null,null,null,null,null,null,null,null,null,null,null,null,null,null,"*",null,{"$f":"SUBSTITUTE(AC82,$AA83,$AB83)","v":"0"},"AucuneMRC","AucunLieu","Prenom","Nom"]
["GEST84",1,"Attention, les colonnes  «AA  -AD\" contiennent le correcteur ASCII (89 lignes)",null,null,null,null,null,null,null,null,null,null,null,null,null,null,null,null,null,null,null,null,null,null,null,"(",null,"0","AucuneMRC","AucunLieu","Prenom","Nom"]
["GEST85",1,"Attention, les colonnes  «AA  -AD\" contiennent le correcteur ASCII (89 lignes)",null,null,null,null,null,null,null,null,null,null,null,null,null,null,null,null,null,null,null,null,null,null,null,")",null,"0","AucuneMRC","AucunLieu","Prenom","Nom"]
["GEST86",1,"Attention, les colonnes  «AA  -AD\" contiennent le correcteur ASCII (89 lignes)",null,null,null,null,null,null,null,null,null,null,null,null,null,null,null,null,null,null,null,null,null,null,null,"_",null,"0","AucuneMRC","AucunLieu","Prenom","Nom"]
["GEST87",1,"Attention, les colonnes  «AA  -AD\" contiennent le correcteur ASCII (89 lignes)",null,null,null,null,null,null,null,null,null,null,null,null,null,null,null,null,null,null,null,null,null,null,null,"–",null,"0","AucuneMRC","AucunLieu","Prenom","Nom"]
["GEST88",1,"Attention, les colonnes  «AA  -AD\" contiennent le correcteur ASCII (89 lignes)",null,null,null,null,null,null,null,null,null,null,null,null,null,null,null,null,null,null,null,null,null,null,null,"—",null,"0","AucuneMRC","AucunLieu","Prenom","Nom"]
["GEST89",1,"Attention, les colonnes  «AA  -AD\" contiennent le correcteur ASCII (89 lignes)",null,null,null,null,null,null,null,null,null,null,null,null,null,null,null,null,null,null,null,null,null,null,null,"-",null,"0","AucuneMRC","AucunLieu","Prenom","Nom"]
["GEST90",1,"Attention, les colonnes  «AA  -AD\" contiennent le correcteur ASCII (89 lignes)"]

{"sheet":"QUESTIONS","index":1,"n_rows":88,"n_cols":24,"rows_kept":88,"cut":false,"hidden":false,"merged":[[20,13,20,20],[21,17,21,20],[22,14,22,15],[22,17,22,20],[23,14,23,15],[23,17,23,20],[30,17,30,20],[24,14,24,15],[24,17,24,20],[25,14,25,15],[25,17,25,20],[26,14,26,15],[26,17,26,20],[27,14,27,15],[27,17,27,20],[28,14,28,15],[28,17,28,20],[29,17,29,20],[43,13,43,16],[31,17,31,20],[32,17,32,20],[34,13,34,16],[35,13,35,16],[36,13,36,16],[37,13,37,16],[38,13,38,16],[39,13,39,16],[40,13,40,16],[41,13,41,16],[42,13,42,16],[55,13,55,16],[44,13,44,16],[45,13,45,16],[46,13,46,16],[47,13,47,16],[48,13,48,16],[49,13,49,16],[50,13,50,16],[51,13,51,16],[52,13,52,16],[53,13,53,16],[54,13,54,16],[67,13,67,16],[56,13,56,16],[57,13,57,16],[58,13,58,16],[59,13,59,16],[60,13,60,16],[61,13,61,16],[62,13,62,16],[63,13,63,16],[64,13,64,16],[65,13,65,16],[66,13,66,16],[79,13,79,16],[68,13,68,16],[69,13,69,16],[70,13,70,16],[71,13,71,16],[72,13,72,16],[73,13,73,16],[74,13,74,16],[75,13,75,16],[76,13,76,16],[77,13,77,16],[78,13,78,16],[86,13,86,16],[87,13,87,16],[80,13,80,16],[81,13,81,16],[82,13,82,16],[83,13,83,16],[84,13,84,16],[85,13,85,16]]}
["NoQ","MEP","Definition",null,null,null,null,"Valeur","Code VBA","Copiecode"]
["NbQuInst",1,"Installations Nombre Question ",null,null,null,null,{"$f":"I24","v":10},0]
["PtQInstA",1,"Installations Pointage Questions",null,null,null,null,{"$f":"I25","v":0},0]
["PtQInstT",1,"Installations Pointage Total",null,null,null,null,{"$f":"I26","v":340},20]
["NbQuProc",1,"Procédures Nombre Question",null,null,null,null,{"$f":"J24","v":33},21]
["PtQProcA",1,"Procédures Pointage Questions",null,null,null,null,{"$f":"J25","v":0},88]
["PtQProcT",1,"Procédures Pointage Total",null,null,null,null,{"$f":"J26","v":1615},88]
["NbQuTout",1,"Total Nombre Question",null,null,null,null,{"$f":"K24","v":43},0,0]
["PtQToutA",1,"Total Pointage Questions",null,null,null,null,{"$f":"K25","v":0},"$Z:$Z"]
["PtQToutT",1,"Total Pointage Total",null,null,null,null,{"$f":"K26","v":1955},{"$f":"CONCATENATE(\"$M$\",I5,\":$V$\",I6)","v":"$M$21:$V$88"}]
["NbQuesSO",1,"Question Sans Objets (n)",null,null,null,null,{"$f":"K29","v":0},{"$f":"CONCATENATE(\"$M$\",I5,\":$Y$\",I6)","v":"$M$21:$Y$88"}]
["NbQRepon",1,"Questions répondues (n)",null,null,null,null,{"$f":"K30","v":0},{"$f":"CONCATENATE(\"$W$\",I5,\":$Y$\",I6)","v":"$W$21:$Y$88"}]
["NbQueTot",1,"Questions totales (n)",null,null,null,null,{"$f":"K31","v":43},"M22:V22,M23:N29,O28:P28,R23:V29,M35:Z100","M22:V22,M23:N29,R23:V29,M35:Z100"]
["RotaCont",1,"Rotation vs. continu",null,null,null,null,{"$f":"R22","v":"Nouveau"},{"$f":"ROW(I35)","v":35}]
["TypeLieux",1,"Type d'élevage ou entreprise",null,null,null,null,{"$f":"R29","v":""},{"$f":"COUNTIF(H:H,\"Titre\")","v":0}]
["IndicOR",1,"Proportion questions Or OK ",null,null,null,null,{"$f":"IFERROR(SUMIFS($M35:$M276,$H35:$H276,2)/J29,1)","v":1}]
["Option0",1,"Texte pour option «0»  du questionnaire",null,null,null,null,null,"Nouveau","Un","Deux"]
["Option1",1,"Texte pour option «1»  du questionnaire"]
["Option2",1,"Texte pour option «2»  du questionnaire"]
["QUEST20",1]
["QUEST21",3,"Titre",null,null,null,null,null,null,null,null,null,null,"Biosécurité à la ferme (veaux)"]
["TypeAudit",12,"Détermine le type d'audit",null,null,null,1,0,1,null,null,null,null,null,null,null,null,{"$f":"CONCATENATE(IF(H22=1,J17,IF(H22=2,K17,I17)))","v":"Nouveau"}]
["IdLieuNM",16,null,null,null,null,1,{"$f":"IF(O23=\"\",\"INCONNU\",O23)","v":"INCONNU"},"I","P","T",null,null,"Identification du lieu",null,null,null,{"$f":"CONCATENATE(\"Q =  \",K30,\"/\",K31,\"  (\",TEXT(K32,\"0%\"),\")\",)","v":"Q =  0/43  (0%)"}]
["NmReLieu",16,null,null,null,null,1,{"$f":"IF(O24=\"\",\"INCONNU\",O24)","v":"INCONNU"},{"$f":"COUNTIFS($E35:$E276,\"I\",$K35:$K276,\">0\")","v":10},{"$f":"COUNTIFS($E35:$E276,\"P\",$K35:$K276,\">0\")","v":33},{"$f":"COUNTIFS($K35:$K276,\">0\")","v":43},null,null,"Nom du responsable",null,null,null,{"$f":"CONCATENATE(\"QI =  \",I24,\";  QP = \",J24)","v":"QI =  10;  QP = 33"}]
["DateEval",18,null,null,null,null,1,{"$f":"O25","v":44181},{"$f":"SUM(I35:I276)","v":0},{"$f":"SUM(J35:J276)","v":0},{"$f":"J25+I25","v":0},null,null,"Date de l'évaluation",{"$f":"TODAY()","v":"2020-12-16"},null,null,{"$f":"CONCATENATE(\"I =  \",I25,\"/\",I26,\"  (\",TEXT(I27,\"0%\"),\")\",)","v":"I =  0/340  (0%)"}]
["NmVeteri",16,null,null,null,null,1,{"$f":"IF(O26=\"\",\"Dr Inconnu\",O26)","v":"Dr Inconnu"},{"$f":"SUMIF($E35:$E276,\"I\",$K35:$K276)","v":340},{"$f":"SUMIF($E35:$E276,\"P\",$K35:$K276)","v":1615},{"$f":"I26+J26","v":1955},null,null,"Nom du consultant",null,null,null,{"$f":"CONCATENATE(\"P =  \",J25,\"/\",J26,\"  (\",TEXT(J27,\"0%\"),\")\",)","v":"P =  0/1615  (0%)"}]
["AdreLieu",16,null,null,null,null,1,{"$f":"IF(O27=\"\",\"Adresse inconnue\",O27)","v":"Adresse inconnue"},{"$f":"IF(I26=0,0,I25/I26)","v":0},{"$f":"IF(J26=0,0,J25/J26)","v":0},{"$f":"IF(K26=0,0,K25/K26)","v":0},null,null,"Adresse",null,null,null,{"$f":"CONCATENATE(\"Total =  \",K25,\"/\",K26,\"  (\",TEXT(K27,\"0%\"),\")\",)","v":"Total =  0/1955  (0%)"}]
["NomAudit",16,null,null,null,null,1,{"$f":"O28","v":" "},null,"QO","QT",null,null,"Nom de l'auditeur",{"$f":"CONCATENATE(ADMIN!P17,\" \",ADMIN!R17)","v":" "},null,null,{"$f":"CONCATENATE(\"Pointage moyen (IP)  =  \",TEXT(AVERAGE(I27:J27),\"0%\"))","v":"Pointage moyen (IP)  =  0%"}]
["NIL",16,null,null,null,null,1,{"$f":"O29","v":0},null,{"$f":"COUNTIF(M35:M276,1)","v":0},{"$f":"COUNTIF(H35:H276,\"1\")","v":0},null,null,"No du lieu (NIL)",null,null,null,{"$f":"CONCATENATE(IF(H30=TRUE,\"DEB\",\"\"),IF(H31=TRUE,\"FIN\",\"\"),IF(H32=TRUE,\"PR\",\"\"),IF(H33=TRUE,\"\",\"\"),IF(H30=1,\"DEB\",\"\"),IF(H31=1,\"FIN\",\"\"),IF(H32=1,\"PR\",\"\"),IF(H33=1,\"\",\"\"))","v":""}]
["CodeTR",22,null,null,null,null,1,false,null,null,{"$f":"COUNTIF(H35:H276,\">0\")-COUNTIF(H35:H276,\"=1\")","v":0},null,null,"Démarrage (50-100 kg), \"DEB\""]
["CodeSL",23,null,null,null,null,1,false,null,null,{"$f":"COUNTIF(C35:C276,\">0\")-COUNTIF(H35:H276,\"=1\")","v":43},null,null,"Finition (100-350 kg), \"FIN\"",null,null,null,"non-conforme"]
["QUEST32",30,null,null,null,null,1,false,null,null,{"$f":"IF(K31=0,0,K30/K31)","v":0},null,null,null,null,null,null,"partiellement conforme"]
["QUEST33",29,null,null,null,null,1,false,null,null,null,null,null,null,null,null,null,"conforme"]
["Legende",1,"PTMAX","PTINTER","I/P","QQOR",1]
[1990,20,0,0,0,"QO110",{"$f":"MAX(LEN(N35)/76,LEN(X35)/175)","v":0.21052631578947367},{"$f":"IF(B35=20,\"titulus\",IF(L35=1,1,0))","v":"titulus"},{"$f":"IF($E35=\"I\",IF($H35=2,$C35,IF($H35=3,$D35,IF(H35=4,1,0))),0)","v":0},{"$f":"IF($E35=\"P\",IF($H35=2,$C35,IF($H35=3,$D35,IF(H35=4,1,0))),0)","v":0},{"$f":"IF(H35=1,0,C35)","v":0},{"$f":"IF(AND(H$22=1,MID(F35,3,1)=\"0\"),1,IF(AND(H$22=2,MID(F35,4,1)=\"0\"),1,0))","v":0},{"$f":"IF(MID(F35,5,1)=\"1\",1,\"\")","v":""},"Animaux entrants",null,null,null,"S. o.","Oui","Partiel","Non",null,null,"Animaux entrants"]
[102,6,100,50,"P","QO100",{"$f":"MAX(LEN(N36)/76,LEN(X36)/175)","v":1.3885714285714286},0,0,0,100,{"$f":"IF(AND(H$22=1,MID(F36,3,1)=\"0\"),1,IF(AND(H$22=2,MID(F36,4,1)=\"0\"),1,0))","v":0},{"$f":"IF(MID(F36,5,1)=\"1\",1,\"\")","v":""},"Q01. La production se fait en tout-plein tout-vide par bâtiment. (P-100)",null,null,null,"","","","",null,null,"Q01. Si les introductions de veaux dans un bâtiment se font sur une période de moins de 2 semaines dans chaque bâtiment sur le site, la réponse est \"oui\".  Si la production se fait un tout-plein tout-vide par chambre, la réponse est \"partiel\"."]
[103,6,100,50,"P","QO100",1.6710526315789473,0,0,0,100,0,"","Q02. Les animaux arrivent directement de la ferme des éleveurs, sans passer par un centre de rassemblement ou un encan. (P-100)",null,null,null,"","","","",null,null,"Q02. Pour une réponse partielle, au moins 20% des veaux arrivent directement des éleveurs."]
[104,6,100,50,"P","QO100",2.8685714285714288,0,0,0,100,0,"","Q03. L'état sanitaire de chaque source de veaux qui entre dans le bâtiment est vérifié par le propriétaire des animaux ou le vétérinaire. (P-100)",null,null,null,"","","","",null,null,"Q03. La vérification de l'état sanitaire des fermes sources est faite au moins 1 fois par année. L'objectif est de valider si les fermes sont susceptibles d'instabilités sanitaires et s'il y a présence de pathogènes indésirables tels que Salmonella Dublin et Salmonella typhimurium. L'émission d'une attestation sanitaire par les vétérinaires des troupeaux sources est encouragée.  Si possible, une discussion est aussi faite sur l'impact de Mannheimia haemolytica et Mycoplasma bovis dans la ferme.   "]
[105,4,100,50,"P","QO100",2.1578947368421053,0,0,0,100,0,"","Q04. La ferme d'origine des animaux malades à l'arrivée est retracée et le propriétaire ou son vétérinaire est informé de la mauvaise santé du(des) veau(x). (P-100)",null,null,null,"","","","",null,null,"Q04. La vérification de l'état de santé des animaux pourrait inclure les problèmes d'omphalite, des indicateur de la prise de colostrum, la déshydratation, les arthrites, les diarrhées, etc."]
[106,6,100,50,"P","QO100",1.9736842105263157,0,0,0,100,0,"","Q05. Les locaux et les équipements où sont introduits les veaux sont toujours nettoyés, lavés, désinfectés et SÉCHÉS avant l'entrée des veaux. (P-100)",null,null,null,"","","","",null,null,"Q05. L'utilisation d'un détergent et d'un désinfectant est nécessaire pour une réponse conforme.  \nLorsque le séchage n'est pas complété, la réponse est \"partiel\"."]
[108,6,50,25,"P","QO100",2.4078947368421053,0,0,0,50,0,"","Q06. Les véhicules utilisés pour la livraison des veaux sur le site d'élevage doivent obligatoirement être nettoyés, lavés, désinfectés et séchés au moins une fois par semaine. (P-50)",null,null,null,"","","","",null,null,"Q06. L'utilisation d'un détergent et d'un désinfectant est nécessaire pour une réponse conforme.  \nLorsque le séchage n'est pas complété, la réponse est \"partiel\"."]
[1990,20,0,0,0,"QO110",0.25,"titulus",0,0,0,0,"","Biosécurité interne",null,null,null,"S. o.","Oui","Partiel","Non",null,null,"Biosécurité interne"]
[110,4,50,25,"P","QO100",1.5394736842105263,0,0,0,50,0,"","Q07. Les mouvements de veaux sont limités dans les trois premières semaines suivant leurs arrivées à la ferme. (P-50)",null,null,null,"","","","",null,null,"Q07. L'objectif est d'éviter la propagation trop rapide de pathogènes à l'intérieur de la salle ou du bâtiment."]
[112,6,20,10,"P","QO100",2.5789473684210527,0,0,0,20,0,"","Q08. Les veaux malades sont placés dans un parc-hôpital, séparément ou à l'extrémité du bâtiment. Lorsqu'en case individuelle, l'endroit est assainis, avant d'y introduire un nouvel animal. (P-20)",null,null,null,"","","","",null,null,"Q08. Voici 2 exemples de protocoles d'assainissement: \n- Brossage avec un savon et désinfection. \n- Ajout d'une poudre asséchante."]
[113,4,50,25,"P","QO100",1.84,0,0,0,50,0,"","Q09. Les veaux malades sont manipulés à la fin d'une procédure ou d'une intervention. (ex: vaccination, aide à boire, etc.)  (P-50)",null,null,null,"","","","",null,null,"Q09. Les personnes manipulant les animaux malades ou confirmés infectés par un agent pathogène (ex.: Salmonella) mettent en place des procédures appropriées avant de continuer à travailler vers d'autres tâches (nettoyage ou changement de bottes, changement de vêtements et de gants et nettoyage et désinfection des mains)."]
[114,4,20,10,"P","QO100",2,0,0,0,20,0,"","Q10. Le système d'alimentation (cuves, mélangeurs, boyaux) et les seaux/auges sont propres et nettoyés régulièrement avec des produits efficaces. (P-20)",null,null,null,"","","","",null,null,"Q10. Entre autre, les veaux alimentés avec un système de distribution de lait automatisé (louve), les tétines, la tubulure, la cuve d’alimentation et la sonde thermique du système sont nettoyées à une fréquence adéquate avec des produits reconnus efficaces."]
[115,6,50,25,"P","QO100",2.513157894736842,0,0,0,50,0,"","Q11. Les équipements nécessaires au traitement individuel des animaux (ex.: tubes œsophagiens, suces, aiguilles) sont changés ou nettoyés entre les interventions d'un animal à l'autre. (P-50)",null,null,null,"","","","",null,null,"Q11. Cette question fait référence au traitement individuel d'animaux malades et non au traitement de masse."]
[116,6,50,25,"P","QO100",3.6315789473684212,0,0,0,50,0,"","Q12. Les bottes sont nettoyées ou changées lorsqu'un travailleur change de section dans l'élevage pour se rendre vers des veaux plus jeunes ou lorsqu'il quitte une section avec des animaux démontrant des signes cliniques de maladies importantes (instabilité sanitaire). (P-50)",null,null,null,"","","","",null,null,"Q12. Il y a présence d'un boyau d'arrosage ou des bottes sont disponibles à l'entrée de ces sections.  "]
[117,4,20,10,"I","QO100",1.9736842105263157,0,0,0,20,0,"","Q13. L'équipement utilisé dans les sections démontrant une instabilité saniraire n'est pas utilisé dans les autres sections (équipement dédié). (I-20)",null,null,null,"","","","",null,null,"Q13. Ex.: pelle, balai, bâton, hochet, etc."]
[1990,20,0,0,0,"QO110",0.42105263157894735,"titulus",0,0,0,0,"","Animaux sortants et débarcadères",null,null,null,"S. o.","Oui","Partiel","Non",null,null,"Animaux sortants et débarcadères"]
[118,4,10,5,"P","QO100",2.1710526315789473,0,0,0,10,0,"","Q14. Les véhicules utilisés pour venir chercher des animaux doivent obligatoirement être nettoyés, lavés, désinfectés et séchés au moins une fois par semaine. (P-10)",null,null,null,"","","","",null,null,"Q14. La présence d'animaux provenant d'au autre site de production dans le camion entraine une réponse négative."]
[119,6,50,25,"I","QO100",1.5263157894736843,0,0,0,50,0,"","Q15. Un quai de chargement conforme aux normes de biosécurité est présent au site d'élevage et il est propre. (I-50)",null,null,null,"","","","",null,null,"Q15. Pour être conforme, le quai doit être chauffé afin de garder la température au-dessus du point de congélation, couvert, à accès limité et propre. Un quai qui respecte deux de ces conditions sera jugé partiellement conforme."]
[120,6,50,25,"P","QO100",1.4971428571428571,0,0,0,50,0,"","Q16. Le camionneur demeure à l'extérieur du bâtiment et respecte les procédures établies par l'éleveur. (P-50)",null,null,null,"","","","",null,null,"Q16. Si l'élevage se fait en tout-plein tout-vide et que le camionneur entre dans le bâtiment lors de la dernière sortie du lot, c'est \"conforme\". Si le camionneur met des couvre-bottes et limite sa circulation dans les corridors, la réponse est alors \"partiel\"."]
[1990,20,0,0,0,"QO110",0.28947368421052633,"titulus",0,0,0,0,"","Personnel et visiteurs",null,null,null,"S. o.","Oui","Partiel","Non",null,null,"Personnel et visiteurs"]
[122,6,20,10,"P","QO100",2.6578947368421053,0,0,0,20,0,"","Q17. L'accès aux bâtiments est limité au personnel désigné et aux visiteurs autorisés, les portes sont gardées verrouillées et une affiche, à cet effet, est apposée à l'entrée de chaque bâtiment. (P-20)",null,null,null,"","","","",null,null,"Q17. Pour être conformes, les visiteurs doivent toujours s'annoncer, les portes sont toujours verrouillées et l'affiche est présente avec un numéro de téléphone pour communiquer avec le personnel de l'entreprise. Les situations où les portes ne sont pas verrouillées ou bien l'affiche est absente seront jugées partiellement conformes. "]
[123,4,20,10,"P","QO100",2.5657142857142858,0,0,0,20,0,"","Q18. Une politique concernant le temps de retrait à respecter est disponible et appliquée, incluant la procédure lors de bioconfinement ou de séjours à l'étranger. (P-20)",null,null,null,"","","","",null,null,"Q18. Le temps de retrait est définit comme le temps écoulé entre 2 visites de fermes.  Un temps de retrait peut être exigé lors du retour de séjours/vacances de certains pays, afin d'éviter l'introduction de maladies exotiques, tel que la fièvre aphteuse. Pour être conforme, une entreprise qui possède plusieurs sites doit avoir un document qui établit l'ordre des visites selon l'âge des animaux et de l'instabilité sanitaire des différents sites."]
[124,4,5,2.5,"P","QO100",0.95428571428571429,0,0,0,5,0,"","Q19. Un registre des visiteurs est disponible et à jour. (P-5)",null,null,null,"","","","",null,null,"Q19. Pour être conforme, le registre contient la date de la visite, le nom et la signature du visiteur, la date et l'endroit du dernier contact avec des veaux/bovins. "]
[125,6,50,25,"I","QO100",2.1578947368421053,0,0,0,50,0,"","Q20. Les bâtiments du lieu de production sont dotés d'une entrée de type danoise, de vêtements, de bottes de rechange et de matériel pour se laver les mains. (I-50)",null,null,null,"","","","",null,null,"Q20. S'il n'y a pas d'eau à l'entrée, les lingettes humides, les bouteilles de désinfectant ou l'utilisation de gants jetable sont une alternative acceptable.  L'absence de vêtement et de bottes entraînera une réponse \"partielle\" s'il y a un boyau pour laver les bottes ou des sacs de plastique disponibles.  Un SCHEMA est disponible pour en discuter."]
[126,6,50,25,"P","QO100",1.368421052631579,0,0,0,50,0,null,"Q21. Les protocoles d'entrée et de sortie des bâtiments de production sont affichés et respectés. (P-50)",null,null,null,"","","","",null,null,"Q21. Pour être conformes, les instructions doivent être affichées dans l'entrée. D'autre part, une procédure respectée, mais pas affichée sera jugée partiellement conforme."]
[128,4,50,25,"P","QO100",1.7763157894736843,0,0,0,50,0,"","Q22. Le personnel journalier requis pour les activités courantes dans les bâtiments travaille uniquement sur ce site d'élevage.  (P-50)",null,null,null,"","","","",null,null,"Q22. Les activités courantes incluent la vaccination, prises de sang, l'alimentation, la tonte, le lavage et le chargement des veaux."]
[129,4,50,25,"P","QO100",1.8421052631578947,0,0,0,50,0,"","Q23. Une formation continue ou pratique sur la biosécurité est donnée au personnel par une tierce partie au moins une fois par 3 ans. (P-50)",null,null,null,"","","","",null,null,"Q23. Pour être conforme, au moins 50 % du personnel a reçu cette formation et celle-ci doit être dispensée par une personne externe, autre que les employés de la ferme."]
[1990,20,0,0,0,"QO110",0.30263157894736842,"titulus",0,0,0,0,"","Matériel et équipements",null,null,null,"S. o.","Oui","Partiel","Non",null,null,"Matériel et équipements"]
[133,6,10,5,"P","QO100",2.1184210526315788,0,0,0,10,0,"","Q24. Il existe une procédure sécuritaire pour l'introduction du matériel, des équipements et des intrants alimentaires nécessaire aux activités courantes. (P-10)",null,null,null,"","","","",null,null,"Q24. Pour être conforme, il existe une procédure écrite.  S'il existe une procédure mais qu'elle n'est pas écrite, la réponse est \"partiel\". D'autre part, l'introduction de poches de divers produits (ex. aliments, poudre de lait, Stalosan F,  Mistral) par la même entrée que le personnel se traduira par une procédure jugée partiellement conforme."]
[130,4,20,10,"P","QO100",2.1052631578947367,0,0,0,20,0,"","Q25. Le matériel nécessaire aux activités courantes du site d'élevage ne provient jamais d'un autre site d'élevage ou d'endroits possiblement contaminés. (P-20)",null,null,null,"","","","",null,null,"Q25. Les activités courantes incluent la vaccination, l'alimentation, la tonte, la prise de sang, le lavage et le chargement des veaux."]
[132,4,20,10,"P","QO100",3.3947368421052633,0,0,0,20,0,"","Q26. Le matériel, les équipements et autres intrants pouvant avoir été en contact avec d'autres sites de production de veaux ou bien des endroits possiblement contaminés sont lavés et désinfectés avant d'être introduits dans le bâtiment de production. (P-20)",null,null,null,"","","","",null,null,"Q26. Ceci inclut les médicaments, les vaccins ou les seringues qui pourraient être utilisés par le personnel des équipes externes au bâtiment."]
[134,4,10,5,"P","QO100",1.3421052631578947,0,0,0,10,0,"","Q27. Les fournisseurs de services n'entrent pas leur équipement dans le bâtiment de production. (P-10)",null,null,null,"","","","",null,null,"Q27. Les fournisseurs de services sont par exemple, les électriciens, les réparateurs ou les équipes de lavage , etc."]
[1990,20,0,0,0,"QO110",0.38157894736842107,{"$f":"IF(B67=20,\"titulus\",IF(L67=1,1,0))","v":"titulus"},0,0,0,0,"","Disposition des animaux morts",null,null,null,"S. o.","Oui","Partiel","Non",null,null,"Disposition des animaux morts"]
[135,6,50,25,"I","QO100",3.0263157894736841,0,0,0,50,0,"","Q28. L'organisation du lieu de production permet la récupération des carcasses d'animaux morts à l'extérieur de la zone d'accès contrôlé (ZAC) par un chemin d'accès différent de celui utilisé par les véhicules du personnel. (I-50)",null,null,null,"","","","",null,null,"Q28. Un bac ou une hutte localisée à l'extérieur de la ZAC, mais qui exige que le récupérateur utilise le même chemin d'accès que celui utilisé par les véhicules du personnel sera jugée comme une installation partiellement conforme."]
[136,6,50,25,"I","QO100",2.1184210526315788,0,0,0,50,0,"","Q29. Les méthodes de travail utilisées pour sortir les veaux morts permettent de prévenir la contamination des autres animaux ou les sections du bâtiment. (I-50)",null,null,null,"","","","",null,null,"Q29. Cette méthode doit être faite de façon à éviter de trainer l'animal mort sur le plancher. Un traineau, une bâche, un diable, un bras hercule sont divers équipements qui peuvent être utilisés.   Si un lavage est effectué suite au déplacement d'un veau mort en le traînant, la réponse est alors \"partiel\"."]
[137,4,50,25,"P","QO100",2.4457142857142857,0,0,0,50,0,"","Q30. La procédure pour sortir les veaux morts des bâtiments est connue par tout le personnel et elle est biosécuritaire. (P-50)",null,null,null,"","","","",null,null,"Q30. Pour être conforme, il ne faut pas sortir les animaux morts par la même porte d'entrée du personnel ou des intrants.  La  procédure doit éviter les aller et retour de l'extérieur vers l'intérieur. Si la procédure implique le passage sur un quai, celui-ci doit être propre. Si la sortie des animaux morts est faite par l'entrée du personnel ou des intrants et qu'un nettoyage est fait par la suite, la réponse est \"partiel\"."]
[138,6,50,25,"I","QO100",1.3421052631578947,0,0,0,50,0,"","Q31. Toutes les carcasses d'animaux sont déposées dans un endroit inaccessible aux charognards. (I-50)",null,null,null,"","","","",null,null,"Q31. Pour être conforme, l'endroit peut être un conteneur, une hutte fermée, un bâtiment ou un cylindre fermé. La présence d'un conteneur sans le couvercle sera jugée comme une procédure partiellement conforme."]
[1990,20,0,0,0,"QO110",0.22368421052631579,"titulus",0,0,0,0,"","Site et bâtiments",null,null,null,"S. o.","Oui","Partiel","Non",null,null,"Site et bâtiments"]
[139,4,20,10,"I","QO100",1.4342105263157894,0,0,0,20,0,"","Q32. Le bâtiment avec des bovins/veaux le plus proche se situe à plus de 500 mètres des installations. (I-20)",null,null,null,"","","","",null,null,"Q32. Pour répondre « oui », la distance doit être évaluée à vol d'oiseau."]
[1990,20,0,0,0,"QO110",0.30263157894736842,"titulus",0,0,0,0,"","Aliments en vrac et eau",null,null,null,"S. o.","Oui","Partiel","Non",null,null,"Aliments en vrac et eau"]
[140,4,20,10,"I","QO100",2.6447368421052633,0,0,0,20,0,"","Q33. L'organisation du lieu de production permet la livraison des aliments par une entrée dédiée dans le bâtiment et différente de celle utilisée par le personnel et la sortie des animaux morts. (I-20)",null,null,null,"","","","",null,null,"Q33. Aucune instruction additionnelle."]
[141,4,20,10,"I","QO100",1.131578947368421,0,0,0,20,0,"","Q34. L'eau utilisée dans l'élevage ne provient pas d'un point d'eau de surface. (I-20)",null,null,null,"","","","",null,null,"Q34. Aucune instruction additionnelle."]
[142,4,20,10,"P","QO100",2.9342105263157894,0,0,0,20,0,"","Q35. Une analyse de la qualité bactériologique de l'eau est effectuée chaque année afin d'en vérifier la salubrité et un suivi des mesures correctives est effectué lorsque des problèmes de contamination sont décelés. (P-20)",null,null,null,"","","","",null,null,"Q35. Aucune instruction additionnelle."]
[1990,20,0,0,0,"QO110",0.22368421052631579,"titulus",0,0,0,0,"","Lisier et litière",null,null,null,"S. o.","Oui","Partiel","Non",null,null,"Lisier et litière"]
[143,6,20,10,"P","QO100",2.84,0,0,0,20,0,"","Q36. L'entreprise utilise son propre matériel d'épandage de lisier/litière et elle ne fait pas de travaux à forfait pour d'autres éleveurs de veaux. (P-20)",null,null,null,"","","","",null,null,"Q36. Le recours à une entreprise à forfait sera jugé conforme si elle transporte uniquement du lisier de la ferme (aucun autre contrat avec d'autres producteurs de veaux).  Des actions de mitigations entraineront une réponse partielle, tel que: 1) la mise en place d'un \"flush\" de l'équipement avec du lisier d'une autre espèce, 2) l'application des premiers voyages de lisier le plus loin possible des bâtiments,  3) l'utilisation d'une voie d'accès différente de celle employée par le personnel."]
[1990,20,0,0,0,"QO110",0.40789473684210525,"titulus",0,0,0,0,"","Vermines et animaux domestiques",null,null,null,"S. o.","Oui","Partiel","Non",null,null,"Vermines et animaux domestiques"]
[144,4,10,5,"I","QO100",1.6710526315789473,0,0,0,10,0,"","Q37. Le bâtiment est conçu et entretenu pour empêcher l'introduction des oiseaux, des rongeurs, des chats et des chiens. (I-10)",null,null,null,"","","","",null,null,"Q37. Aucun chat et chien n'est toléré à l'intérieur des bâtiments."]
[145,4,10,5,"P","QO100",2.097142857142857,0,0,0,10,0,"","Q38. Un programme de contrôle des rongeurs existe et il est efficace. (P-10)",null,null,null,"","","","",null,null,"Q38. Pour répondre « oui », le contrôle peut se faire par un exterminateur indépendant et des factures ou rapports doivent être disponibles.  Comme alternative, si le producteur le fait lui même, des factures d'achat de produit doivent être disponibles (ou un registre) et des boîtes à l'extérieur et certains endroits à l'interieur avec appâts doivent être visibles."]
[1990,20,0,0,0,"QO110",1.3942857142857144,"titulus",0,0,0,0,"","Bioconfinement lors d'instabilité sanitaire",null,null,null,"S. o.","Oui","Partiel","Non",null,null,"L'objectif est de protéger les autres élevages de bovins dans le cas d'une éclosion d'une crise sanitaire (instabilité), lors de la détection d'un pathogène multi-résistant aux antibiotiques ou autre raisons jugée nécessaire par le vétérinaire."]
[147,4,10,5,"P","QO100",1.7105263157894737,0,0,0,10,0,"","Q39. Une pancarte mentionnant que le site a mis en place des mesures de bioconfinement est visible à l'arrivée sur le site. (P-10)",null,null,null,"","","","",null,null,"Q39. Aucune instruction additionnelle."]
[148,4,100,50,"P","QO100",2.1842105263157894,0,0,0,100,0,"","Q40. Lorsqu'il y a de l'instabilité sanitaire, les visiteurs, les conseillers techniques et fournisseurs de services se rendent sur le site en fin de journée. (P-100)",null,null,null,"","","","",null,null,"Q40. Un temps de retrait de 12 heures est suggéré pour les visites subséquentes."]
[149,4,100,50,"P","QO100",1.1578947368421053,0,0,0,100,0,"","Q41. Les animaux de ce site ne seront pas mélangés avec d'autres lots d'animaux. (P-100)",null,null,null,"","","","",null,null,"Q41. Aucune instruction additionnelle."]
[150,4,100,50,"P","QO100",2.3815789473684212,0,0,0,100,0,null,"Q42. Les animaux de ce site seront déplacés uniquement vers un autre site en aval soit de la pouponnière vers un engraissement sans autres animaux ou encore vers l'abattoir. (P-100)",null,null,null,null,null,null,null,null,null,"Q42. Les sites à éviter sont les encans et les centres de rassemblements."]
[151,6,100,50,"P","QO100",2.0526315789473686,0,0,0,100,0,null,"Q43. Le transport des animaux sortant vers l'abattoir se fait en fin de la semaine de travail et le camion est lavé, désinfecté, séché par la suite. (P-100)",null,null,null,null,null,null,null,null,null,"Q43. Une sortie d'animaux durant la semaine de travail, suivis par un nettoyage/lavage/désinfection/séchage de la remorque entrainerait une réponse \"partiel\". "]

{"sheet":"SUMMARIUM","index":2,"n_rows":48,"n_cols":20,"rows_kept":48,"cut":false,"hidden":false,"merged":[[0,13,0,20],[12,13,12,20],[14,13,14,20],[16,14,16,15],[16,17,21,20],[17,14,17,15],[18,14,18,15],[19,14,19,15],[20,14,20,15],[21,14,21,15],[23,13,23,20],[25,13,25,14],[25,17,25,18],[25,19,25,20],[26,13,26,14],[26,17,26,18],[26,19,26,20],[27,13,27,14],[27,17,27,18],[27,19,27,20],[28,13,28,14],[28,17,28,18],[28,19,28,20],[30,13,30,14],[30,17,30,18],[30,19,30,20],[31,13,31,16],[31,17,31,18],[31,19,31,20],[45,13,45,20],[46,13,46,20],[32,13,32,16],[32,17,32,18],[32,19,32,20],[35,13,35,20],[36,13,36,20],[43,13,43,20]]}
["NoQ",1,"Definition",null,null,null,null,"DATA","Code VBA","Copie"]
[1,1,null,null,null,null,null,null,0,0]
[2,1,null,null,null,null,null,null,0,0]
[3,1,null,null,null,null,null,null,12,{"$f":"ROW(J13)","v":13}]
[4,1,null,null,null,null,null,null,13,{"$f":"ROW(J14)","v":14}]
[5,1,null,null,null,null,null,null,{"$f":"ROW(I44)+17","v":61},{"$f":"ROW(J44)+17","v":61}]
[6,1,null,null,null,null,null,null,{"$f":"ROW(I44)+17","v":61},{"$f":"ROW(J44)+17","v":61}]
[7,1,null,null,null,null,null,null,45,45]
[8,1,null,null,null,null,null,null,"$W:$Z"]
[9,1,null,null,null,null,null,null,{"$f":"CONCATENATE(\"$M$\",I5,\":$V$\",I6)","v":"$M$13:$V$61"}]
[10,1,null,null,null,null,null,null,"http://biosec.ca/AuditTranspQCBovi01/imagine.png"]
[11,1,null,null,null,null,null,null,"http://biosec.ca/AuditTranspQCBovi01/imagebench.png"]
[12,3,null,null,null,null,null,null,"M14:V48","M14:V73",null,null,null,"Biosécurité à la ferme (veaux)"]
[13,1,null,null,null,null,null,null,{"$f":"ROW(I44)+5","v":49},{"$f":"ROW(J44)+5","v":49}]
[14,42,null,null,null,null,null,null,1,null,null,null,null,"Coordonnées et description du lieu"]
[15,14]
[16,27,null,null,null,null,null,null,"http://biosec.ca/AuditTranspQCBovi01/donneeq.csv",null,null,null,null,"Identification du lieu",{"$f":"CONCATENATE(QUESTIONS!O23,\" NIL\",QUESTIONS!H29)","v":" NIL0"},null,null,{"$f":"IF(I18=1,\"OR\",IF(I18=2,\"ARGENT\",\"BRONZE\"))","v":"BRONZE"}]
[17,27,null,null,null,null,null,{"$f":"QUESTIONS!H16","v":1},{"$f":"IF(T33<0.5,3,IF(AND(T33>0.75,H18=1),1,2))","v":3},{"$f":"IF(I18=1,\"OR\",IF(I18=2,\"ARGENT\",\"BRONZE\"))","v":"BRONZE"},null,null,null,"Nom du responsable",{"$f":"QUESTIONS!O24","v":0}]
[18,28,null,null,null,null,null,null,null,null,null,null,null,"Date de l'évaluation",{"$f":"QUESTIONS!O25","v":"2020-12-16"}]
[19,27,null,null,null,null,null,{"$f":"IF(QUESTIONS!O26=\"\",\"\",QUESTIONS!O26)","v":""},null,null,null,null,null,"Consultant (option)",{"$f":"H20","v":""}]
[20,27,null,null,null,null,null,{"$f":"IF(QUESTIONS!O27=\"\",\"\",QUESTIONS!O27)","v":""},null,null,null,null,null,"Adresse",{"$f":"H21","v":""}]
[21,27,null,null,null,null,null,null,null,null,null,null,null,"Nom de l'auditeur",{"$f":"QUESTIONS!O28","v":" "}]
[22,14]
[23,42,null,null,null,null,null,null,null,null,null,null,null,"Résultat de l'audit en biosécurité"]
[24,14]
[25,44,null,null,null,null,null,null,null,null,null,null,null,"Composantes",null,"Facteur de risque",null,"Points",null,"%"]
[26,45,null,null,null,null,null,null,null,null,null,null,null,"Installations et équipements",null,{"$f":"QUESTIONS!I24","v":10},null,{"$f":"CONCATENATE(ROUND(QUESTIONS!I25,0),\"/\",ROUND(QUESTIONS!I26,0))","v":"0/340"},null,{"$f":"QUESTIONS!I27","v":0}]
[27,46,null,null,null,null,null,null,null,null,null,null,null,"Procédures et protocoles",null,{"$f":"QUESTIONS!J24","v":33},null,{"$f":"CONCATENATE(ROUND(QUESTIONS!J25,0),\"/\",QUESTIONS!J26)","v":"0/1615"},null,{"$f":"QUESTIONS!J27","v":0}]
[28,47,null,null,null,null,null,null,null,null,null,null,null,"Total",null,{"$f":"SUM(P27:P28)","v":43},null,{"$f":"CONCATENATE(ROUND(QUESTIONS!K25,0),\"/\",QUESTIONS!K26)","v":"0/1955"},null,{"$f":"QUESTIONS!K27","v":0}]
[29,14]
[30,44,null,null,null,null,null,null,null,null,null,null,null,"Conformité aux recommandations des experts"]
[31,53,null,null,null,null,null,null,null,null,null,null,null,"Pointage global (moyenne des facteurs de risques)",null,null,null,null,null,{"$f":"T29","v":0}]
[32,54,null,null,null,null,null,null,null,null,null,null,null,"Pointage moyen (moyenne des deux composantes)",null,null,null,null,null,{"$f":"AVERAGE(T27:T28)","v":0}]
[33,14]
[34,1,null,null,null,null,null,2]
[35,60,null,null,null,null,null,2]
[36,60,null,null,null,null,null,2]
[37,1,null,null,null,null,null,2]
[38,1,null,null,null,null,null,2]
[39,1,null,null,null,null,null,4]
[40,1,null,null,null,null,null,2]
[41,1,null,null,null,null,null,2]
[42,1,null,null,null,null,null,2]
[43,61,null,null,null,null,null,4]
[44,1,null,null,null,null,null,2]
[45,42,null,null,null,null,null,0,null,null,null,null,null,{"$f":"CONCATENATE(\"L'audit a permis d'identifier \",H46, \" mesures qui ne sont pas totalement conformes\")","v":"L'audit a permis d'identifier 0 mesures qui ne sont pas totalement conformes"}]
[46,42,null,null,null,null,null,0,null,null,null,null,null,{"$f":"CONCATENATE(\"Liste des \", H47, \" mesures jugées les plus importantes pour améliorer la biosécurité\")","v":"Liste des 0 mesures jugées les plus importantes pour améliorer la biosécurité"}]
[47,1,null,null,null,null,null,6]

{"sheet":"DATAQ","index":3,"n_rows":109,"n_cols":15,"rows_kept":109,"cut":false,"hidden":true,"merged":[]}
["Zone réservée pour les centiles",null,null,null,null,null,null,null,null,"Ligne","NmVariable","ValeurO","ValeurF","Lebon","LeMoinsBon"]
[null,null,null,null,null,null,null,null,null,2,{"$f":"ADMIN!A2","v":"QIDCDPQO"},{"$f":"ADMIN!H2","v":"20201216-NIL0-AucunLieuXXXXXXXXXXX"},"Aucun","20201104-NIL34568-LeBonXXXXXXXXXXXXXXX","20201104-NIL34568-LeMoinsBonXXXXXXXXXX"]
[null,null,null,null,null,null,null,null,null,3,{"$f":"ADMIN!A3","v":"QIDCDPQF"},{"$f":"ADMIN!H3","v":0},{"$f":"L3","v":0},0,0]
[null,null,null,null,null,null,null,null,null,4,{"$f":"ADMIN!A4","v":"IdAudit"},{"$f":"ADMIN!H4","v":"PRENNOMX"},{"$f":"L4","v":"PRENNOMX"},"ZENOTESS","ZENOTESS"]
[null,null,null,null,null,null,null,null,null,5,{"$f":"ADMIN!A5","v":"PrenomAudit"},{"$f":"ADMIN!H5","v":"Prénom"},"Prénom","Zenoma","Zenoma"]
[null,null,null,null,null,null,null,null,null,6,{"$f":"ADMIN!A6","v":"NomAudit"},{"$f":"ADMIN!H6","v":"Nom"},"Nom","Tesselata","Tesselata"]
[null,null,null,null,null,null,null,null,null,7,{"$f":"ADMIN!A7","v":"CourrielAudit"},{"$f":"ADMIN!H7","v":"Audit@pascourriel"},"Audit@pascourriel","zenona@gmail.ca","zenona@gmail.ca"]
[null,null,null,null,null,null,null,null,null,8,{"$f":"ADMIN!A8","v":"CourrielClient"},{"$f":"ADMIN!H8","v":0},"Aucun","Aucun","Aucun"]
[null,null,null,null,null,null,null,null,null,9,{"$f":"ADMIN!A9","v":"EnvoiAudit"},{"$f":"ADMIN!H9","v":1},"Aucun",1,1]
[null,null,null,null,null,null,null,null,null,10,{"$f":"ADMIN!A10","v":"EnvoiClient"},{"$f":"ADMIN!H10","v":1},"Aucun",1,1]
[null,null,null,null,null,null,null,null,null,11,{"$f":"ADMIN!A11","v":"NmQuestAudit"},{"$f":"ADMIN!H11","v":"SO"},"SO","SO","SO"]
[null,null,null,null,null,null,null,null,null,12,{"$f":"ADMIN!A12","v":"CodeValida"},{"$f":"ADMIN!H12","v":""},"Aucun","",""]
[null,null,null,null,null,null,null,null,null,13,{"$f":"ADMIN!A13","v":"MRC"},{"$f":"ADMIN!H13","v":"AucuneMRC"},"AucuneMRC","AucuneMRC","AucuneMRC"]
[null,null,null,null,null,null,null,null,null,14,{"$f":"ADMIN!A14","v":"Titre"},{"$f":"ADMIN!H14","v":0},0,0,0]
[null,null,null,null,null,null,null,null,null,15,{"$f":"ADMIN!A15","v":"EnvoiConsut"},{"$f":"ADMIN!H15","v":1},1,1,1]
[null,null,null,null,null,null,null,null,null,16,{"$f":"ADMIN!A16","v":"CourrielConsult"},{"$f":"ADMIN!H16","v":0},0,"Aucun","Aucun"]
[null,null,null,null,null,null,null,null,null,17,{"$f":"ADMIN!A17","v":"GEST17"},{"$f":"ADMIN!H17","v":0},0,0,0]
[null,null,null,null,null,null,null,null,null,18,{"$f":"ADMIN!A18","v":"GEST18"},{"$f":"ADMIN!H18","v":0},0,0,0]
[null,null,null,null,null,null,null,null,null,19,{"$f":"ADMIN!A19","v":"GEST19"},{"$f":"ADMIN!H19","v":0},0,0,0]
[null,null,null,null,null,null,null,null,null,20,{"$f":"ADMIN!A20","v":"GEST20"},{"$f":"ADMIN!H20","v":0},0,0,0]
[null,null,null,null,null,null,null,null,null,21,{"$f":"ADMIN!A21","v":"GEST21"},{"$f":"ADMIN!H21","v":0},0,0,0]
[null,null,null,null,null,null,null,null,null,2,{"$f":"QUESTIONS!A2","v":"NbQuInst"},{"$f":"QUESTIONS!H2","v":10},10,10,10]
[null,null,null,null,null,null,null,null,null,3,{"$f":"QUESTIONS!A3","v":"PtQInstA"},{"$f":"QUESTIONS!H3","v":0},0,340,77]
[null,null,null,null,null,null,null,null,null,4,{"$f":"QUESTIONS!A4","v":"PtQInstT"},{"$f":"QUESTIONS!H4","v":340},340,340,340]
[null,null,null,null,null,null,null,null,null,5,{"$f":"QUESTIONS!A5","v":"NbQuProc"},{"$f":"QUESTIONS!H5","v":33},33,33,33]
[null,null,null,null,null,null,null,null,null,6,{"$f":"QUESTIONS!A6","v":"PtQProcA"},{"$f":"QUESTIONS!H6","v":0},0,1615,295]
[null,null,null,null,null,null,null,null,null,7,{"$f":"QUESTIONS!A7","v":"PtQProcT"},{"$f":"QUESTIONS!H7","v":1615},1615,1615,1615]
[null,null,null,null,null,null,null,null,null,8,{"$f":"QUESTIONS!A8","v":"NbQuTout"},{"$f":"QUESTIONS!H8","v":43},43,43,43]
[null,null,null,null,null,null,null,null,null,9,{"$f":"QUESTIONS!A9","v":"PtQToutA"},{"$f":"QUESTIONS!H9","v":0},0,1955,372]
[null,null,null,null,null,null,null,0,null,10,{"$f":"QUESTIONS!A10","v":"PtQToutT"},{"$f":"QUESTIONS!H10","v":1955},1955,1955,1955]
[null,null,null,null,null,null,null,0,null,11,{"$f":"QUESTIONS!A11","v":"NbQuesSO"},{"$f":"QUESTIONS!H11","v":0},0,0,0]
[null,null,null,null,null,null,null,0,null,12,{"$f":"QUESTIONS!A12","v":"NbQRepon"},{"$f":"QUESTIONS!H12","v":0},0,43,43]
[null,null,null,null,null,null,null,0,null,13,{"$f":"QUESTIONS!A13","v":"NbQueTot"},{"$f":"QUESTIONS!H13","v":43},43,43,43]
[null,null,null,null,null,null,null,null,null,14,{"$f":"QUESTIONS!A14","v":"RotaCont"},{"$f":"QUESTIONS!H14","v":"Nouveau"},"Nouveau","Un","Un"]
[null,null,null,null,null,null,null,null,null,15,{"$f":"QUESTIONS!A15","v":"TypeLieux"},{"$f":"QUESTIONS!H15","v":""},"","DEB","DEB"]
[null,null,null,null,null,null,null,null,null,16,{"$f":"QUESTIONS!A16","v":"IndicOR"},{"$f":"QUESTIONS!H16","v":1},1,1,1]
[null,null,null,null,null,null,null,null,null,17,{"$f":"QUESTIONS!A17","v":"Option0"},{"$f":"QUESTIONS!H17","v":0},0,0,0]
[null,null,null,null,null,null,null,null,null,18,{"$f":"QUESTIONS!A18","v":"Option1"},{"$f":"QUESTIONS!H18","v":0},0,0,0]
[null,null,null,null,null,null,null,null,null,19,{"$f":"QUESTIONS!A19","v":"Option2"},{"$f":"QUESTIONS!H19","v":0},0,0,0]
[null,null,null,null,null,null,null,null,null,20,{"$f":"QUESTIONS!A20","v":"QUEST20"},{"$f":"QUESTIONS!H20","v":0},0,0,0]
[null,null,null,null,null,null,null,null,null,21,{"$f":"QUESTIONS!A21","v":"QUEST21"},{"$f":"QUESTIONS!H21","v":0},0,0,0]
[null,null,null,null,null,null,null,null,null,22,{"$f":"QUESTIONS!A22","v":"TypeAudit"},{"$f":"QUESTIONS!H22","v":0},"Aucun",1,1]
[null,null,null,null,null,null,null,null,null,23,{"$f":"QUESTIONS!A23","v":"IdLieuNM"},{"$f":"QUESTIONS!H23","v":"INCONNU"},"Aucun","LeBon","Le MoinsBon"]
[null,null,null,null,null,null,null,null,null,24,{"$f":"QUESTIONS!A24","v":"NmReLieu"},{"$f":"QUESTIONS!H24","v":"INCONNU"},"INCONNU","Jean Le Bon","Jean Le MoinsBon"]
[null,null,null,null,null,null,null,null,null,25,{"$f":"QUESTIONS!A25","v":"DateEval"},{"$f":"QUESTIONS!H25","v":44181},44181,44139,44139]
[null,null,null,null,null,null,null,null,null,26,{"$f":"QUESTIONS!A26","v":"NmVeteri"},{"$f":"QUESTIONS!H26","v":"Dr Inconnu"},"Aucun","Jules Le Vet","Jules Le Vet"]
[null,null,null,null,null,null,null,null,null,27,{"$f":"QUESTIONS!A27","v":"AdreLieu"},{"$f":"QUESTIONS!H27","v":"Adresse inconnue"},"Adresse inconnue","533, La Belle Rue, Saint-Zéphirin","533, La Belle Rue, Saint-Zéphirin"]
[null,null,null,null,null,null,null,null,null,28,{"$f":"QUESTIONS!A28","v":"NomAudit"},{"$f":"QUESTIONS!H28","v":" "},"Aucun","Zenoma Tesselata","Zenoma Tesselata"]
[null,null,null,null,null,null,null,null,null,29,{"$f":"QUESTIONS!A29","v":"NIL"},{"$f":"QUESTIONS!H29","v":0},0,34568,34568]
[null,null,null,null,null,null,null,null,null,30,{"$f":"QUESTIONS!A30","v":"CodeTR"},{"$f":"QUESTIONS!H30","v":false},false,true,true]
[null,null,null,null,null,null,null,null,null,31,{"$f":"QUESTIONS!A31","v":"CodeSL"},{"$f":"QUESTIONS!H31","v":false},false,false,false]
[null,null,null,null,null,null,null,null,null,32,{"$f":"QUESTIONS!A32","v":"QUEST32"},{"$f":"QUESTIONS!H32","v":false},false,0,0]
[null,null,null,null,null,null,null,null,null,33,{"$f":"QUESTIONS!A33","v":"QUEST33"},{"$f":"QUESTIONS!H33","v":false},false,0,0]
[null,null,null,null,null,null,null,null,null,34,{"$f":"QUESTIONS!A34","v":"Legende"},{"$f":"QUESTIONS!H34","v":0},null,0,0]
[null,null,null,null,null,null,null,null,null,35,{"$f":"QUESTIONS!A35","v":1990},{"$f":"QUESTIONS!H35","v":"titulus"},null,"titulus","titulus"]
[null,null,null,null,null,null,null,null,null,36,{"$f":"QUESTIONS!A36","v":102},{"$f":"QUESTIONS!H36","v":0},null,2,4]
[null,null,null,null,null,null,null,null,null,37,{"$f":"QUESTIONS!A37","v":103},{"$f":"QUESTIONS!H37","v":0},null,2,4]
[null,null,null,null,null,null,null,null,null,38,{"$f":"QUESTIONS!A38","v":104},{"$f":"QUESTIONS!H38","v":0},null,2,3]
[null,null,null,null,null,null,null,null,null,39,{"$f":"QUESTIONS!A39","v":105},{"$f":"QUESTIONS!H39","v":0},null,2,4]
[null,null,null,null,null,null,null,null,null,40,{"$f":"QUESTIONS!A40","v":106},{"$f":"QUESTIONS!H40","v":0},null,2,3]
[null,null,null,null,null,null,null,null,null,41,{"$f":"QUESTIONS!A41","v":108},{"$f":"QUESTIONS!H41","v":0},null,2,4]
[null,null,null,null,null,null,null,null,null,42,{"$f":"QUESTIONS!A42","v":1990},{"$f":"QUESTIONS!H42","v":"titulus"},null,"titulus","titulus"]
[null,null,null,null,null,null,null,null,null,43,{"$f":"QUESTIONS!A43","v":110},{"$f":"QUESTIONS!H43","v":0},null,2,4]
[null,null,null,null,null,null,null,null,null,44,{"$f":"QUESTIONS!A44","v":112},{"$f":"QUESTIONS!H44","v":0},null,2,3]
[null,null,null,null,null,null,null,null,null,45,{"$f":"QUESTIONS!A45","v":113},{"$f":"QUESTIONS!H45","v":0},null,2,4]
[null,null,null,null,null,null,null,null,null,46,{"$f":"QUESTIONS!A46","v":114},{"$f":"QUESTIONS!H46","v":0},null,2,4]
[null,null,null,null,null,null,null,null,null,47,{"$f":"QUESTIONS!A47","v":115},{"$f":"QUESTIONS!H47","v":0},null,2,3]
[null,null,null,null,null,null,null,null,null,48,{"$f":"QUESTIONS!A48","v":116},{"$f":"QUESTIONS!H48","v":0},null,2,2]
[null,null,null,null,null,null,null,null,null,49,{"$f":"QUESTIONS!A49","v":117},{"$f":"QUESTIONS!H49","v":0},null,2,2]
[null,null,null,null,null,null,null,null,null,50,{"$f":"QUESTIONS!A50","v":1990},{"$f":"QUESTIONS!H50","v":"titulus"},null,"titulus","titulus"]
[null,null,null,null,null,null,null,null,null,51,{"$f":"QUESTIONS!A51","v":118},{"$f":"QUESTIONS!H51","v":0},null,2,4]
[null,null,null,null,null,null,null,null,null,52,{"$f":"QUESTIONS!A52","v":119},{"$f":"QUESTIONS!H52","v":0},null,2,3]
[null,null,null,null,null,null,null,null,null,53,{"$f":"QUESTIONS!A53","v":120},{"$f":"QUESTIONS!H53","v":0},null,2,4]
[null,null,null,null,null,null,null,null,null,54,{"$f":"QUESTIONS!A54","v":1990},{"$f":"QUESTIONS!H54","v":"titulus"},null,"titulus","titulus"]
[null,null,null,null,null,null,null,null,null,55,{"$f":"QUESTIONS!A55","v":122},{"$f":"QUESTIONS!H55","v":0},null,2,4]
[null,null,null,null,null,null,null,null,null,56,{"$f":"QUESTIONS!A56","v":123},{"$f":"QUESTIONS!H56","v":0},null,2,4]
[null,null,null,null,null,null,null,null,null,57,{"$f":"QUESTIONS!A57","v":124},{"$f":"QUESTIONS!H57","v":0},null,2,4]
[null,null,null,null,null,null,null,null,null,58,{"$f":"QUESTIONS!A58","v":125},{"$f":"QUESTIONS!H58","v":0},null,2,3]
[null,null,null,null,null,null,null,null,null,59,{"$f":"QUESTIONS!A59","v":126},{"$f":"QUESTIONS!H59","v":0},null,2,3]
[null,null,null,null,null,null,null,null,null,60,{"$f":"QUESTIONS!A60","v":128},{"$f":"QUESTIONS!H60","v":0},null,2,4]
[null,null,null,null,null,null,null,null,null,61,{"$f":"QUESTIONS!A61","v":129},{"$f":"QUESTIONS!H61","v":0},null,2,4]
[null,null,null,null,null,null,null,null,null,62,{"$f":"QUESTIONS!A62","v":1990},{"$f":"QUESTIONS!H62","v":"titulus"},null,"titulus","titulus"]
[null,null,null,null,null,null,null,null,null,63,{"$f":"QUESTIONS!A63","v":133},{"$f":"QUESTIONS!H63","v":0},null,2,4]
[null,null,null,null,null,null,null,null,null,64,{"$f":"QUESTIONS!A64","v":130},{"$f":"QUESTIONS!H64","v":0},null,2,4]
[null,null,null,null,null,null,null,null,null,65,{"$f":"QUESTIONS!A65","v":132},{"$f":"QUESTIONS!H65","v":0},null,2,4]
[null,null,null,null,null,null,null,null,null,66,{"$f":"QUESTIONS!A66","v":134},{"$f":"QUESTIONS!H66","v":0},null,2,4]
[null,null,null,null,null,null,null,null,null,67,{"$f":"QUESTIONS!A67","v":1990},{"$f":"QUESTIONS!H67","v":"titulus"},null,"titulus","titulus"]
[null,null,null,null,null,null,null,null,null,68,{"$f":"QUESTIONS!A68","v":135},{"$f":"QUESTIONS!H68","v":0},null,2,4]
[null,null,null,null,null,null,null,null,null,69,{"$f":"QUESTIONS!A69","v":136},{"$f":"QUESTIONS!H69","v":0},null,2,4]
[null,null,null,null,null,null,null,null,null,70,{"$f":"QUESTIONS!A70","v":137},{"$f":"QUESTIONS!H70","v":0},null,2,4]
[null,null,null,null,null,null,null,null,null,71,{"$f":"QUESTIONS!A71","v":138},{"$f":"QUESTIONS!H71","v":0},null,2,4]
[null,null,null,null,null,null,null,null,null,72,{"$f":"QUESTIONS!A72","v":1990},{"$f":"QUESTIONS!H72","v":"titulus"},null,"titulus","titulus"]
[null,null,null,null,null,null,null,null,null,73,{"$f":"QUESTIONS!A73","v":139},{"$f":"QUESTIONS!H73","v":0},null,2,4]
[null,null,null,null,null,null,null,null,null,74,{"$f":"QUESTIONS!A74","v":1990},{"$f":"QUESTIONS!H74","v":"titulus"},null,"titulus","titulus"]
[null,null,null,null,null,null,null,null,null,75,{"$f":"QUESTIONS!A75","v":140},{"$f":"QUESTIONS!H75","v":0},null,2,4]
[null,null,null,null,null,null,null,null,null,76,{"$f":"QUESTIONS!A76","v":141},{"$f":"QUESTIONS!H76","v":0},null,2,4]
[null,null,null,null,null,null,null,null,null,77,{"$f":"QUESTIONS!A77","v":142},{"$f":"QUESTIONS!H77","v":0},null,2,4]
[null,null,null,null,null,null,null,null,null,78,{"$f":"QUESTIONS!A78","v":1990},{"$f":"QUESTIONS!H78","v":"titulus"},null,"titulus","titulus"]
[null,null,null,null,null,null,null,null,null,79,{"$f":"QUESTIONS!A79","v":143},{"$f":"QUESTIONS!H79","v":0},null,2,4]
[null,null,null,null,null,null,null,null,null,80,{"$f":"QUESTIONS!A80","v":1990},{"$f":"QUESTIONS!H80","v":"titulus"},null,"titulus","titulus"]
[null,null,null,null,null,null,null,null,null,81,{"$f":"QUESTIONS!A81","v":144},{"$f":"QUESTIONS!H81","v":0},null,2,4]
[null,null,null,null,null,null,null,null,null,82,{"$f":"QUESTIONS!A82","v":145},{"$f":"QUESTIONS!H82","v":0},null,2,4]
[null,null,null,null,null,null,null,null,null,83,{"$f":"QUESTIONS!A83","v":1990},{"$f":"QUESTIONS!H83","v":"titulus"},null,"titulus","titulus"]
[null,null,null,null,null,null,null,null,null,84,{"$f":"QUESTIONS!A84","v":147},{"$f":"QUESTIONS!H84","v":0},null,2,4]
[null,null,null,null,null,null,null,null,null,85,{"$f":"QUESTIONS!A85","v":148},{"$f":"QUESTIONS!H85","v":0},null,2,4]
[null,null,null,null,null,null,null,null,null,86,{"$f":"QUESTIONS!A86","v":149},{"$f":"QUESTIONS!H86","v":0},null,2,2]
[null,null,null,null,null,null,null,null,null,87,{"$f":"QUESTIONS!A87","v":150},{"$f":"QUESTIONS!H87","v":0},null,2,4]
[null,null,null,null,null,null,null,null,null,88,{"$f":"QUESTIONS!A88","v":151},{"$f":"QUESTIONS!H88","v":0},null,2,4]
[null,null,null,null,null,null,null,null,null,"FIN","FIN","FIN","FIN","FIN"]